[Event "*** Titled Tuesday Blitz"]
[Site "Chess.com"]
[Date "2021.03.30"]
[Round "11"]
[White "ChessQueen"]
[Black "scarabee43"]
[Result "1/2-1/2"]
[WhiteElo "2705"]
[BlackElo "2599"]
[TimeControl "180+1"]
[EndTime "12:08:55 PDT"]
[Termination "Game drawn by repetition"]

1. Nf3 {[%clk 0:03:00.9]} 1... Nf6 {[%clk 0:02:59.8]} 2. g3 {[%clk 0:03:00.8]}
2... e6 {[%clk 0:03:00.1]} 3. Bg2 {[%clk 0:03:00.8]} 3... b6 {[%clk 0:02:59.8]}
4. O-O {[%clk 0:03:01.1]} 4... Bb7 {[%clk 0:02:59.7]} 5. c4 {[%clk 0:03:01.7]}
5... Be7 {[%clk 0:02:59.4]} 6. b3 {[%clk 0:03:02.2]} 6... O-O {[%clk 0:02:59.8]}
7. Bb2 {[%clk 0:03:02.7]} 7... c5 {[%clk 0:03:00.1]} 8. e3 {[%clk 0:03:02.7]}
8... d5 {[%clk 0:03:00.2]} 9. Qe2 {[%clk 0:03:00.2]} 9... Nc6 {[%clk 0:02:58.4]}
10. Ne1 {[%clk 0:02:57.1]} 10... Qd7 {[%clk 0:02:56.9]} 11. f4 {[%clk
0:02:55.4]} 11... Rfd8 {[%clk 0:02:54.5]} 12. d3 {[%clk 0:02:53.3]} 12... a6
{[%clk 0:02:48]} 13. Nd2 {[%clk 0:02:48.1]} 13... b5 {[%clk 0:02:47.7]} 14. Rd1
{[%clk 0:02:42.9]} 14... dxc4 {[%clk 0:02:43.3]} 15. dxc4 {[%clk 0:02:41.3]}
15... Qc7 {[%clk 0:02:42.8]} 16. Nc2 {[%clk 0:02:33.5]} 16... Rab8 {[%clk
0:02:36.3]} 17. g4 {[%clk 0:02:28.6]} 17... Na5 {[%clk 0:02:30.4]} 18. g5 {[%clk
0:02:22.7]} 18... Nd7 {[%clk 0:02:28.5]} 19. Bxb7 {[%clk 0:01:47.7]} 19... Rxb7
{[%clk 0:02:27.1]} 20. Bc3 {[%clk 0:01:38.6]} 20... bxc4 {[%clk 0:02:20.9]} 21.
bxc4 {[%clk 0:01:38.5]} 21... Nc6 {[%clk 0:02:19.8]} 22. Ne4 {[%clk 0:01:31.6]}
22... Nb4 {[%clk 0:02:13.2]} 23. Na1 {[%clk 0:01:30.6]} 23... Qc6 {[%clk
0:02:11]} 24. Ng3 {[%clk 0:01:28.9]} 24... Qa4 {[%clk 0:02:07]} 25. Rd2 {[%clk
0:01:26.6]} 25... Bf8 {[%clk 0:02:01.5]} 26. Rfd1 {[%clk 0:01:24.6]} 26... Rdb8
{[%clk 0:01:48.7]} 27. h4 {[%clk 0:01:21.3]} 27... Nb6 {[%clk 0:01:47.3]} 28. h5
{[%clk 0:01:07.9]} 28... Nc6 {[%clk 0:01:45.2]} 29. h6 {[%clk 0:01:00.2]} 29...
Qxc4 {[%clk 0:01:42.2]} 30. hxg7 {[%clk 0:00:52.9]} 30... Bxg7 {[%clk
0:01:40.6]} 31. Bxg7 {[%clk 0:00:51.1]} 31... Qxe2 {[%clk 0:01:38.4]} 32. Rxe2
{[%clk 0:00:51.5]} 32... Kxg7 {[%clk 0:01:38.2]} 33. Nb3 {[%clk 0:00:52]} 33...
Rd7 {[%clk 0:01:31.1]} 34. Rc1 {[%clk 0:00:34.8]} 34... c4 {[%clk 0:01:30.9]}
35. Nc5 {[%clk 0:00:35.2]} 35... Re7 {[%clk 0:01:24.4]} 36. Nh5+ {[%clk
0:00:32.6]} 36... Kg6 {[%clk 0:01:23.8]} 37. Nf6 {[%clk 0:00:33.5]} 37... Nd5
{[%clk 0:01:09]} 38. Nfd7 {[%clk 0:00:32]} 38... Rb4 {[%clk 0:01:03.3]} 39. Nxa6
{[%clk 0:00:31.1]} 39... Rxd7 {[%clk 0:00:58.1]} 40. Nxb4 {[%clk 0:00:31.3]}
40... Ncxb4 {[%clk 0:00:58.2]} 41. Rxc4 {[%clk 0:00:31.9]} 41... Ra7 {[%clk
0:00:56.1]} 42. Kf2 {[%clk 0:00:26.7]} 42... Nxa2 {[%clk 0:00:55.1]} 43. Kf3
{[%clk 0:00:25.1]} 43... h6 {[%clk 0:00:50.3]} 44. gxh6 {[%clk 0:00:24.6]} 44...
Kxh6 {[%clk 0:00:50.4]} 45. Rc8 {[%clk 0:00:21.6]} 45... Kg7 {[%clk 0:00:43.4]}
46. Rc4 {[%clk 0:00:14.2]} 46... Nab4 {[%clk 0:00:41.7]} 47. e4 {[%clk
0:00:13.2]} 47... Ra3+ {[%clk 0:00:41.3]} 48. Kg4 {[%clk 0:00:13.5]} 48... Nf6+
{[%clk 0:00:39.4]} 49. Kh4 {[%clk 0:00:13.8]} 49... Nd3 {[%clk 0:00:38.8]} 50.
e5 {[%clk 0:00:13.2]} 50... Nd5 {[%clk 0:00:34.7]} 51. Rg2+ {[%clk 0:00:13.5]}
51... Kf8 {[%clk 0:00:34.6]} 52. Rc8+ {[%clk 0:00:12.4]} 52... Ke7 {[%clk
0:00:35.1]} 53. Rgg8 {[%clk 0:00:13.3]} 53... N3xf4 {[%clk 0:00:26.4]} 54. Rge8+
{[%clk 0:00:13.5]} 54... Kd7 {[%clk 0:00:26.7]} 55. Red8+ {[%clk 0:00:13.8]}
55... Ke7 {[%clk 0:00:27]} 56. Re8+ {[%clk 0:00:14.1]} 56... Kd7 {[%clk
0:00:27.5]} 57. Red8+ {[%clk 0:00:14.6]} 57... Ke7 {[%clk 0:00:28]} 58. Re8+
{[%clk 0:00:14.9]} 1/2-1/2

[Event "*** Titled Tuesday Blitz"]
[Site "Chess.com"]
[Date "2021.03.30"]
[Round "11"]
[White "Susik_Gaboyan"]
[Black "dpruess"]
[Result "0-1"]
[WhiteElo "2248"]
[BlackElo "2356"]
[TimeControl "180+1"]
[EndTime "12:08:55 PDT"]
[Termination "dpruess won on time"]

1. e4 {[%clk 0:02:50]} 1... c5 {[%clk 0:02:59.7]} 2. Nc3 {[%clk 0:02:49.7]} 2...
a6 {[%clk 0:02:58.6]} 3. f4 {[%clk 0:02:44.3]} 3... b5 {[%clk 0:02:57.7]} 4. Nf3
{[%clk 0:02:43.6]} 4... Bb7 {[%clk 0:02:57.5]} 5. d3 {[%clk 0:02:39.9]} 5... e6
{[%clk 0:02:49.9]} 6. g3 {[%clk 0:02:36.3]} 6... d5 {[%clk 0:02:46.8]} 7. e5
{[%clk 0:02:27.4]} 7... d4 {[%clk 0:02:42.3]} 8. Ne4 {[%clk 0:02:24.5]} 8... Nh6
{[%clk 0:02:39.9]} 9. Bg2 {[%clk 0:02:24.1]} 9... Nf5 {[%clk 0:02:36.9]} 10. O-O
{[%clk 0:02:21.2]} 10... Nd7 {[%clk 0:02:35.7]} 11. Nfg5 {[%clk 0:02:16.7]}
11... Qb6 {[%clk 0:02:14.1]} 12. Qh5 {[%clk 0:02:04.3]} 12... g6 {[%clk
0:02:10.5]} 13. Qf3 {[%clk 0:01:39]} 13... h6 {[%clk 0:02:05.5]} 14. Nh3 {[%clk
0:01:15.4]} 14... Be7 {[%clk 0:01:57.3]} 15. Nhf2 {[%clk 0:01:08.5]} 15... Rc8
{[%clk 0:01:32.8]} 16. Ng4 {[%clk 0:00:59.9]} 16... c4 {[%clk 0:01:26.9]} 17.
Nef6+ {[%clk 0:00:40.2]} 17... Nxf6 {[%clk 0:01:07.9]} 18. Nxf6+ {[%clk
0:00:35.8]} 18... Bxf6 {[%clk 0:01:06.9]} 19. Qxb7 {[%clk 0:00:36.4]} 19... Qxb7
{[%clk 0:01:05.5]} 20. Bxb7 {[%clk 0:00:37.3]} 20... Rb8 {[%clk 0:01:04.9]} 21.
Bxa6 {[%clk 0:00:37.5]} 21... Rb6 {[%clk 0:00:57.5]} 22. Bxb5+ {[%clk
0:00:32.5]} 22... Rxb5 {[%clk 0:00:58.2]} 23. exf6 {[%clk 0:00:33.3]} 23... cxd3
{[%clk 0:00:56.7]} 24. cxd3 {[%clk 0:00:34.2]} 24... Kd7 {[%clk 0:00:55.4]} 25.
b3 {[%clk 0:00:30.7]} 25... Rc8 {[%clk 0:00:53]} 26. Bb2 {[%clk 0:00:26]} 26...
Kd6 {[%clk 0:00:40.9]} 27. Rfc1 {[%clk 0:00:24.2]} 27... Ra8 {[%clk 0:00:34.8]}
28. g4 {[%clk 0:00:20.1]} 28... Ne3 {[%clk 0:00:31.1]} 29. Bxd4 {[%clk
0:00:19.7]} 29... Nxg4 {[%clk 0:00:31.1]} 30. h3 {[%clk 0:00:17.4]} 30... Kd5
{[%clk 0:00:30.2]} 31. Rc4 {[%clk 0:00:14.2]} 31... e5 {[%clk 0:00:26.1]} 32.
fxe5 {[%clk 0:00:09.6]} 32... Nxe5 {[%clk 0:00:27]} 33. Bxe5 {[%clk 0:00:09.2]}
33... Kxe5 {[%clk 0:00:27.9]} 34. Re1+ {[%clk 0:00:08.4]} 34... Kxf6 {[%clk
0:00:27.8]} 35. Re2 {[%clk 0:00:07.1]} 35... Rd5 {[%clk 0:00:22.5]} 36. Rf2+
{[%clk 0:00:04.7]} 36... Kg7 {[%clk 0:00:20.7]} 37. Rc7 {[%clk 0:00:05.2]} 37...
Rf8 {[%clk 0:00:20.4]} 38. Rf3 {[%clk 0:00:05.5]} 38... g5 {[%clk 0:00:20.1]}
39. a4 {[%clk 0:00:05.4]} 39... Kg6 {[%clk 0:00:20.4]} 40. b4 {[%clk 0:00:05]}
40... f5 {[%clk 0:00:20.3]} 41. b5 {[%clk 0:00:03.7]} 41... Ra8 {[%clk
0:00:19.4]} 42. Rc4 {[%clk 0:00:03.1]} 42... f4 {[%clk 0:00:18.5]} 43. b6 {[%clk
0:00:02.9]} 43... Rda5 {[%clk 0:00:16.9]} 44. b7 {[%clk 0:00:02.2]} 44... Rb8
{[%clk 0:00:17]} 45. Rc6+ {[%clk 0:00:02.5]} 45... Kf5 {[%clk 0:00:16.6]} 46.
Rf2 {[%clk 0:00:01.7]} 46... Rxb7 {[%clk 0:00:15.7]} 47. Rfc2 {[%clk 0:00:02.2]}
47... Rd7 {[%clk 0:00:13.2]} 0-1

[Event "*** Titled Tuesday Blitz"]
[Site "Chess.com"]
[Date "2021.03.30"]
[Round "11"]
[White "WPWPWP-2015"]
[Black "iamnotIM"]
[Result "1-0"]
[WhiteElo "2493"]
[BlackElo "2587"]
[TimeControl "180+1"]
[EndTime "12:08:59 PDT"]
[Termination "WPWPWP-2015 won by resignation"]

1. e4 {[%clk 0:02:58.9]} 1... c5 {[%clk 0:02:59.2]} 2. Nc3 {[%clk 0:02:57.4]}
2... a6 {[%clk 0:02:58.8]} 3. g3 {[%clk 0:02:55.9]} 3... b5 {[%clk 0:02:58.9]}
4. Bg2 {[%clk 0:02:52.3]} 4... Bb7 {[%clk 0:02:59.3]} 5. Nh3 {[%clk 0:02:49.4]}
5... h5 {[%clk 0:02:56.6]} 6. O-O {[%clk 0:02:48.5]} 6... h4 {[%clk 0:02:56.7]}
7. g4 {[%clk 0:02:42.8]} 7... e6 {[%clk 0:02:55]} 8. d3 {[%clk 0:02:40]} 8...
Nc6 {[%clk 0:02:51.9]} 9. a4 {[%clk 0:02:37.7]} 9... b4 {[%clk 0:02:49.3]} 10.
Ne2 {[%clk 0:02:34.6]} 10... Nd4 {[%clk 0:02:49.7]} 11. Be3 {[%clk 0:02:31.7]}
11... Nxe2+ {[%clk 0:02:40.9]} 12. Qxe2 {[%clk 0:02:25.8]} 12... Rc8 {[%clk
0:02:38.9]} 13. f4 {[%clk 0:02:24.4]} 13... d5 {[%clk 0:02:15.2]} 14. Rad1
{[%clk 0:02:20.4]} 14... Ne7 {[%clk 0:01:48.6]} 15. f5 {[%clk 0:02:14]} 15... d4
{[%clk 0:01:38]} 16. Bf4 {[%clk 0:02:09.9]} 16... Qb6 {[%clk 0:01:30.6]} 17. a5
{[%clk 0:02:03.3]} 17... Qc6 {[%clk 0:01:22.3]} 18. fxe6 {[%clk 0:01:35.3]}
18... fxe6 {[%clk 0:01:22.3]} 19. Ng5 {[%clk 0:01:31]} 19... h3 {[%clk 0:01:22]}
20. Bxh3 {[%clk 0:01:22.5]} 20... Ng6 {[%clk 0:01:18]} 21. Bg3 {[%clk
0:01:22.1]} 21... Bd6 {[%clk 0:01:10.8]} 22. Bg2 {[%clk 0:00:48.7]} 22... Bxg3
{[%clk 0:01:08.8]} 23. hxg3 {[%clk 0:00:49.6]} 23... Ne5 {[%clk 0:01:03.5]} 24.
Rf4 {[%clk 0:00:42.9]} 24... Ke7 {[%clk 0:00:54]} 25. b3 {[%clk 0:00:39]} 25...
Rcf8 {[%clk 0:00:53.3]} 26. Rdf1 {[%clk 0:00:37.9]} 26... Qe8 {[%clk 0:00:50.2]}
27. Qf2 {[%clk 0:00:34.3]} 27... Nxg4 {[%clk 0:00:37.8]} 28. Rxf8 {[%clk
0:00:20.7]} 28... Rxf8 {[%clk 0:00:37]} 29. Qxf8+ {[%clk 0:00:21.3]} 29... Qxf8
{[%clk 0:00:37.1]} 30. Rxf8 {[%clk 0:00:21.7]} 30... Kxf8 {[%clk 0:00:37.3]} 31.
Nxe6+ {[%clk 0:00:22.1]} 31... Ke7 {[%clk 0:00:34.6]} 32. Nxc5 {[%clk
0:00:22.3]} 32... Bc8 {[%clk 0:00:35.2]} 33. Bh3 {[%clk 0:00:22.4]} 33... Kd6
{[%clk 0:00:33.5]} 34. Bxg4 {[%clk 0:00:21.1]} 34... Bxg4 {[%clk 0:00:31.4]} 35.
Nxa6 {[%clk 0:00:21.7]} 35... Bd1 {[%clk 0:00:30.3]} 36. Nxb4 {[%clk 0:00:21.5]}
36... Kc5 {[%clk 0:00:30.8]} 37. a6 {[%clk 0:00:20.7]} 37... Kb6 {[%clk
0:00:28.7]} 38. Kf2 {[%clk 0:00:20.5]} 38... g5 {[%clk 0:00:28.7]} 39. Ke1
{[%clk 0:00:20.3]} 39... Bg4 {[%clk 0:00:29.1]} 40. Kd2 {[%clk 0:00:19.5]} 40...
Be6 {[%clk 0:00:28.2]} 41. c3 {[%clk 0:00:19.8]} 41... dxc3+ {[%clk 0:00:26.6]}
42. Kxc3 {[%clk 0:00:20.2]} 42... Bc8 {[%clk 0:00:27.2]} 43. d4 {[%clk
0:00:20.5]} 43... Kb5 {[%clk 0:00:27.6]} 44. d5 {[%clk 0:00:19.3]} 44... Kb6
{[%clk 0:00:25.6]} 45. Kc4 {[%clk 0:00:19.3]} 45... g4 {[%clk 0:00:24.7]} 46. e5
{[%clk 0:00:19.4]} 46... Bd7 {[%clk 0:00:25.4]} 47. e6 {[%clk 0:00:19.4]} 47...
Bc8 {[%clk 0:00:26.1]} 48. Kd4 {[%clk 0:00:17.2]} 48... Kc7 {[%clk 0:00:24.4]}
49. Kc5 {[%clk 0:00:16.4]} 49... Kb8 {[%clk 0:00:23.3]} 50. Kb6 {[%clk
0:00:15.1]} 50... Ka8 {[%clk 0:00:23.4]} 51. Nd3 {[%clk 0:00:14]} 51... Kb8
{[%clk 0:00:21.7]} 52. Nc5 {[%clk 0:00:13.9]} 52... Bb7 {[%clk 0:00:21.7]} 53.
Nxb7 {[%clk 0:00:12.7]} 1-0

[Event "*** Titled Tuesday Blitz"]
[Site "Chess.com"]
[Date "2021.03.30"]
[Round "11"]
[White "Ave_Mariia"]
[Black "Limelight2727"]
[Result "1-0"]
[WhiteElo "2488"]
[BlackElo "2367"]
[TimeControl "180+1"]
[EndTime "12:08:59 PDT"]
[Termination "Ave_Mariia won by checkmate"]

1. d4 {[%clk 0:03:00.9]} 1... Nf6 {[%clk 0:02:59.5]} 2. c4 {[%clk 0:03:01.3]}
2... e6 {[%clk 0:02:59.3]} 3. g3 {[%clk 0:03:01.1]} 3... d5 {[%clk 0:02:53.2]}
4. Nf3 {[%clk 0:03:01.2]} 4... dxc4 {[%clk 0:02:53.6]} 5. Bg2 {[%clk 0:03:01.2]}
5... Bd7 {[%clk 0:02:52.8]} 6. Ne5 {[%clk 0:03:00.6]} 6... Bc6 {[%clk
0:02:53.4]} 7. Nxc6 {[%clk 0:03:00.1]} 7... Nxc6 {[%clk 0:02:53.9]} 8. e3 {[%clk
0:03:00.6]} 8... h5 {[%clk 0:02:48.4]} 9. Nc3 {[%clk 0:02:49.7]} 9... h4 {[%clk
0:02:43.9]} 10. O-O {[%clk 0:02:49.8]} 10... Bd6 {[%clk 0:02:40]} 11. Qa4 {[%clk
0:02:44.8]} 11... Qd7 {[%clk 0:02:34.7]} 12. Qxc4 {[%clk 0:02:43.4]} 12... e5
{[%clk 0:02:27.6]} 13. Rd1 {[%clk 0:02:22.6]} 13... exd4 {[%clk 0:02:02]} 14.
exd4 {[%clk 0:02:22.5]} 14... O-O-O {[%clk 0:01:56.7]} 15. Bg5 {[%clk
0:02:19.5]} 15... hxg3 {[%clk 0:01:44.9]} 16. hxg3 {[%clk 0:02:18.8]} 16... Rh5
{[%clk 0:01:12.5]} 17. Bxf6 {[%clk 0:02:08.5]} 17... gxf6 {[%clk 0:01:13.4]} 18.
Ne4 {[%clk 0:02:07.6]} 18... Be7 {[%clk 0:01:05.1]} 19. Nc5 {[%clk 0:02:04.1]}
19... Bxc5 {[%clk 0:00:57.6]} 20. dxc5 {[%clk 0:02:00.9]} 20... Qxd1+ {[%clk
0:00:51.9]} 21. Rxd1 {[%clk 0:02:01.8]} 21... Rxd1+ {[%clk 0:00:50.9]} 22. Bf1
{[%clk 0:02:01.7]} 22... Re5 {[%clk 0:00:37.5]} 23. Qg4+ {[%clk 0:01:42.6]}
23... Rd7 {[%clk 0:00:32.6]} 24. b4 {[%clk 0:01:40.3]} 24... Nd4 {[%clk
0:00:26.9]} 25. Qg8+ {[%clk 0:01:33.1]} 25... Rd8 {[%clk 0:00:26.1]} 26. Qxf7
{[%clk 0:01:33]} 26... Nf3+ {[%clk 0:00:23.3]} 27. Kh1 {[%clk 0:01:25.6]} 27...
Rh8+ {[%clk 0:00:20.5]} 28. Bh3+ {[%clk 0:01:25.5]} 28... Rxh3+ {[%clk
0:00:19.2]} 29. Kg2 {[%clk 0:01:25.6]} 29... Ng5 {[%clk 0:00:18.4]} 30. Qxf6
{[%clk 0:01:16.6]} 30... Rd5 {[%clk 0:00:18.7]} 31. Qf8+ {[%clk 0:01:09.1]}
31... Kd7 {[%clk 0:00:13.9]} 32. Qg7+ {[%clk 0:01:09.1]} 32... Kc6 {[%clk
0:00:12.8]} 33. Qg6+ {[%clk 0:01:05.8]} 33... Kb5 {[%clk 0:00:10.8]} 34. Qc2
{[%clk 0:00:56.1]} 34... Rh6 {[%clk 0:00:07.9]} 35. Qb3 {[%clk 0:00:54.4]} 35...
c6 {[%clk 0:00:04.6]} 36. a4+ {[%clk 0:00:52.4]} 36... Ka6 {[%clk 0:00:04.9]}
37. Qc4+ {[%clk 0:00:42]} 37... b5 {[%clk 0:00:05.4]} 38. axb5+ {[%clk
0:00:42.9]} 38... Kb7 {[%clk 0:00:05.9]} 39. bxc6+ {[%clk 0:00:42.3]} 39... Kxc6
{[%clk 0:00:06.4]} 40. b5+ {[%clk 0:00:42.5]} 40... Kc7 {[%clk 0:00:07.3]} 41.
Qxd5 {[%clk 0:00:43.1]} 41... Ne6 {[%clk 0:00:06.1]} 42. Qd6+ {[%clk 0:00:43.2]}
42... Kc8 {[%clk 0:00:06]} 43. b6 {[%clk 0:00:42.7]} 43... axb6 {[%clk
0:00:05.8]} 44. cxb6 {[%clk 0:00:42.8]} 44... Kb7 {[%clk 0:00:06]} 45. f4 {[%clk
0:00:33]} 45... Rg6 {[%clk 0:00:06.3]} 46. f5 {[%clk 0:00:31.5]} 46... Nf4+
{[%clk 0:00:05.8]} 47. Qxf4 {[%clk 0:00:31.6]} 47... Rxb6 {[%clk 0:00:06.7]} 48.
f6 {[%clk 0:00:30.8]} 48... Rb2+ {[%clk 0:00:07.6]} 49. Kh3 {[%clk 0:00:30.7]}
49... Rb1 {[%clk 0:00:07.8]} 50. f7 {[%clk 0:00:31.6]} 50... Rh1+ {[%clk
0:00:08.5]} 51. Kg2 {[%clk 0:00:32]} 51... Rh8 {[%clk 0:00:09.4]} 52. f8=Q
{[%clk 0:00:32.4]} 52... Rxf8 {[%clk 0:00:10.3]} 53. Qxf8 {[%clk 0:00:32.9]}
53... Kc6 {[%clk 0:00:11.2]} 54. Qf5 {[%clk 0:00:32.4]} 54... Kd6 {[%clk
0:00:10.8]} 55. Kf3 {[%clk 0:00:32.5]} 55... Kc7 {[%clk 0:00:10.9]} 56. Ke4
{[%clk 0:00:33]} 56... Kd8 {[%clk 0:00:11.8]} 57. Kd5 {[%clk 0:00:33.3]} 57...
Ke7 {[%clk 0:00:12.7]} 58. Qe6+ {[%clk 0:00:32.9]} 58... Kd8 {[%clk 0:00:13.6]}
59. Qf7 {[%clk 0:00:31.4]} 59... Kc8 {[%clk 0:00:12.6]} 60. Kc6 {[%clk
0:00:31.9]} 60... Kb8 {[%clk 0:00:13.5]} 61. Qb7# {[%clk 0:00:32.2]} 1-0

[Event "*** Titled Tuesday Blitz"]
[Site "Chess.com"]
[Date "2021.03.30"]
[Round "11"]
[White "GregShahade"]
[Black "Twitch_ElhamBlitz05"]
[Result "1-0"]
[WhiteElo "2719"]
[BlackElo "2850"]
[TimeControl "180+1"]
[EndTime "12:09:00 PDT"]
[Termination "GregShahade won by resignation"]

1. e4 {[%clk 0:03:00.9]} 1... c6 {[%clk 0:02:56]} 2. Nc3 {[%clk 0:03:00.6]} 2...
d5 {[%clk 0:02:55.3]} 3. Nf3 {[%clk 0:03:01.3]} 3... dxe4 {[%clk 0:02:55.6]} 4.
Nxe4 {[%clk 0:03:02.2]} 4... Nf6 {[%clk 0:02:56.3]} 5. Qe2 {[%clk 0:03:02.4]}
5... Nxe4 {[%clk 0:02:56.8]} 6. Qxe4 {[%clk 0:03:03.3]} 6... Qd5 {[%clk
0:02:57.3]} 7. Qf4 {[%clk 0:03:03.4]} 7... Qf5 {[%clk 0:02:57.5]} 8. Qe3 {[%clk
0:03:03.8]} 8... Qe6 {[%clk 0:02:58]} 9. b3 {[%clk 0:03:04.3]} 9... Qxe3+ {[%clk
0:02:58.6]} 10. fxe3 {[%clk 0:03:05.2]} 10... Bf5 {[%clk 0:02:58.2]} 11. Bb2
{[%clk 0:03:01]} 11... Nd7 {[%clk 0:02:58.2]} 12. O-O-O {[%clk 0:03:00.8]} 12...
e6 {[%clk 0:02:52.7]} 13. Rg1 {[%clk 0:02:50.7]} 13... Nf6 {[%clk 0:02:49.4]}
14. h3 {[%clk 0:02:50.2]} 14... Be7 {[%clk 0:02:35.7]} 15. g4 {[%clk 0:02:49.9]}
15... Bg6 {[%clk 0:02:36.3]} 16. Ne5 {[%clk 0:02:48.2]} 16... Bd6 {[%clk
0:01:41.5]} 17. h4 {[%clk 0:02:37.9]} 17... Bxe5 {[%clk 0:01:41.3]} 18. Bxe5
{[%clk 0:02:37.7]} 18... O-O {[%clk 0:01:21.7]} 19. d3 {[%clk 0:02:19.5]} 19...
Nd5 {[%clk 0:00:57.6]} 20. h5 {[%clk 0:01:39.9]} 20... f6 {[%clk 0:00:56.7]} 21.
Bd4 {[%clk 0:01:12.2]} 21... Bf7 {[%clk 0:00:53.3]} 22. e4 {[%clk 0:01:12.7]}
22... Nf4 {[%clk 0:00:36.5]} 23. h6 {[%clk 0:01:10.7]} 23... e5 {[%clk 0:00:34]}
24. hxg7 {[%clk 0:01:09.8]} 24... Kxg7 {[%clk 0:00:34]} 25. Bc5 {[%clk
0:01:07.5]} 25... Rg8 {[%clk 0:00:30.9]} 26. g5 {[%clk 0:01:07.4]} 26... fxg5
{[%clk 0:00:23.7]} 27. Rxg5+ {[%clk 0:01:06.5]} 27... Kf6 {[%clk 0:00:24.1]} 28.
Rf5+ {[%clk 0:01:05.4]} 28... Ke6 {[%clk 0:00:24.7]} 29. d4 {[%clk 0:01:05.5]}
29... Bg6 {[%clk 0:00:01.4]} 30. Bc4+ {[%clk 0:01:03.9]} 30... Kd7 {[%clk
0:00:01.4]} 31. dxe5+ {[%clk 0:01:00.8]} 31... Nd5 {[%clk 0:00:01.9]} 32. Rf4
{[%clk 0:00:43.2]} 32... b5 {[%clk 0:00:02.4]} 33. exd5 {[%clk 0:00:37.8]} 33...
bxc4 {[%clk 0:00:01.9]} 34. e6+ {[%clk 0:00:38.3]} 34... Kc7 {[%clk 0:00:01.5]}
35. d6+ {[%clk 0:00:38.5]} 35... Kb7 {[%clk 0:00:02.2]} 36. d7 {[%clk
0:00:34.2]} 36... cxb3 {[%clk 0:00:01.6]} 37. axb3 {[%clk 0:00:28.1]} 37... Kc7
{[%clk 0:00:01.7]} 38. e7 {[%clk 0:00:23.4]} 38... Bh5 {[%clk 0:00:02.1]} 39.
d8=Q+ {[%clk 0:00:20.9]} 39... Raxd8 {[%clk 0:00:02.6]} 40. exd8=Q+ {[%clk
0:00:21.1]} 40... Rxd8 {[%clk 0:00:03.5]} 41. Rxd8 {[%clk 0:00:18.4]} 41... Kxd8
{[%clk 0:00:04.4]} 42. Bxa7 {[%clk 0:00:17.5]} 42... Kd7 {[%clk 0:00:04.2]} 43.
Bc5 {[%clk 0:00:17.4]} 43... Bg6 {[%clk 0:00:04.6]} 44. b4 {[%clk 0:00:17.4]}
44... Ke6 {[%clk 0:00:05.1]} 45. c3 {[%clk 0:00:17.6]} 45... h5 {[%clk
0:00:05.2]} 46. Bd4 {[%clk 0:00:16.5]} 46... Bf5 {[%clk 0:00:05.8]} 47. Kd2
{[%clk 0:00:15.4]} 47... Bg4 {[%clk 0:00:05.9]} 48. Ke3 {[%clk 0:00:15.3]} 48...
Kd5 {[%clk 0:00:06.3]} 49. Rxg4 {[%clk 0:00:13.9]} 49... hxg4 {[%clk 0:00:06.3]}
50. Kf4 {[%clk 0:00:14.3]} 50... c5 {[%clk 0:00:07]} 51. Bxc5 {[%clk 0:00:14]}
51... g3 {[%clk 0:00:06.8]} 52. Kxg3 {[%clk 0:00:13.6]} 1-0

[Event "*** Titled Tuesday Blitz"]
[Site "Chess.com"]
[Date "2021.03.30"]
[Round "11"]
[White "GAusal"]
[Black "Grineva_Marianna"]
[Result "0-1"]
[WhiteElo "2065"]
[BlackElo "2249"]
[TimeControl "180+1"]
[EndTime "12:09:00 PDT"]
[Termination "Grineva_Marianna won by checkmate"]

1. d4 {[%clk 0:03:00.9]} 1... d5 {[%clk 0:03:00.1]} 2. Bf4 {[%clk 0:02:59.1]}
2... e6 {[%clk 0:02:57.4]} 3. e3 {[%clk 0:02:56.4]} 3... Nf6 {[%clk 0:02:57.8]}
4. Nf3 {[%clk 0:02:53.2]} 4... Be7 {[%clk 0:02:53.6]} 5. Bd3 {[%clk 0:02:51.3]}
5... O-O {[%clk 0:02:53.6]} 6. Nbd2 {[%clk 0:02:49.2]} 6... b6 {[%clk
0:02:51.7]} 7. c3 {[%clk 0:02:48.1]} 7... c5 {[%clk 0:02:52]} 8. Ne5 {[%clk
0:02:46.6]} 8... Nfd7 {[%clk 0:02:41.7]} 9. Ndf3 {[%clk 0:02:41.1]} 9... f6
{[%clk 0:02:30]} 10. Nxd7 {[%clk 0:02:35.2]} 10... Bxd7 {[%clk 0:02:25.7]} 11.
O-O {[%clk 0:02:26.1]} 11... Nc6 {[%clk 0:02:24.7]} 12. Re1 {[%clk 0:02:24.7]}
12... Qe8 {[%clk 0:02:18.9]} 13. Bg3 {[%clk 0:02:23.4]} 13... c4 {[%clk
0:01:59.9]} 14. Bc2 {[%clk 0:02:22.2]} 14... f5 {[%clk 0:02:00.4]} 15. Ne5
{[%clk 0:02:20.8]} 15... Nxe5 {[%clk 0:01:59.3]} 16. Bxe5 {[%clk 0:02:18.3]}
16... Bf6 {[%clk 0:01:57.8]} 17. f4 {[%clk 0:02:16.9]} 17... Qg6 {[%clk
0:01:51.6]} 18. Rf1 {[%clk 0:02:11.6]} 18... Be8 {[%clk 0:01:44.1]} 19. Qe1
{[%clk 0:01:58.1]} 19... Bxe5 {[%clk 0:01:41.8]} 20. dxe5 {[%clk 0:01:56.4]}
20... Qh6 {[%clk 0:01:41.4]} 21. Rf3 {[%clk 0:01:44.6]} 21... Bh5 {[%clk
0:01:31.8]} 22. Rg3 {[%clk 0:01:43.6]} 22... Kh8 {[%clk 0:01:29.3]} 23. Ba4
{[%clk 0:01:34.5]} 23... Be8 {[%clk 0:01:18.3]} 24. Bc2 {[%clk 0:01:30.5]} 24...
Rg8 {[%clk 0:01:12.7]} 25. Rg5 {[%clk 0:01:29.6]} 25... g6 {[%clk 0:01:12.9]}
26. Qd2 {[%clk 0:01:17.3]} 26... Qf8 {[%clk 0:01:11]} 27. a3 {[%clk 0:01:06.4]}
27... Rc8 {[%clk 0:01:08.9]} 28. Rf1 {[%clk 0:01:03.6]} 28... h6 {[%clk
0:01:06.2]} 29. Rg3 {[%clk 0:01:01.9]} 29... Rc7 {[%clk 0:01:06.4]} 30. Rh3
{[%clk 0:01:01.5]} 30... Rh7 {[%clk 0:01:06.4]} 31. Qe2 {[%clk 0:00:58.9]} 31...
Qg7 {[%clk 0:00:57.2]} 32. g4 {[%clk 0:00:56.2]} 32... g5 {[%clk 0:00:50.7]} 33.
Rg3 {[%clk 0:00:46.7]} 33... Qd7 {[%clk 0:00:35.3]} 34. gxf5 {[%clk 0:00:40.8]}
34... exf5 {[%clk 0:00:29.5]} 35. Qd2 {[%clk 0:00:34.7]} 35... Rhg7 {[%clk
0:00:21.8]} 36. Qd4 {[%clk 0:00:19.6]} 36... gxf4 {[%clk 0:00:17.4]} 37. e6
{[%clk 0:00:17.1]} 37... Qxe6 {[%clk 0:00:16.1]} 38. exf4 {[%clk 0:00:14.8]}
38... Kh7 {[%clk 0:00:13.7]} 39. Rf3 {[%clk 0:00:12.3]} 39... Bh5 {[%clk
0:00:12]} 40. Rf1 {[%clk 0:00:11.3]} 40... Rxg3+ {[%clk 0:00:10.5]} 41. hxg3
{[%clk 0:00:10.5]} 41... Rxg3+ {[%clk 0:00:11.4]} 42. Kh2 {[%clk 0:00:10.3]}
42... Rg7 {[%clk 0:00:11]} 43. Rf2 {[%clk 0:00:10.2]} 43... Qg6 {[%clk
0:00:10.7]} 44. Qe3 {[%clk 0:00:09.8]} 44... Qg1+ {[%clk 0:00:10.5]} 45. Kh3
{[%clk 0:00:10.1]} 45... Bg4+ {[%clk 0:00:10.9]} 46. Kh4 {[%clk 0:00:09.7]}
46... Qh1+ {[%clk 0:00:11.2]} 47. Kg3 {[%clk 0:00:08.8]} 47... Qh3# {[%clk
0:00:10.6]} 0-1